[Event "21th IPCA World Individual Chp."]
[Site "followchess.com"]
[Date "2022.05.09"]
[Round "1"]
[White "Mekus, Manuela"]
[Black "Obodchuk, Andrei"]
[Result "0-1"]
[WhiteElo "1644"]
[BlackElo "2295"]
[ECO "B20"]
[WhiteFed "GER"]
[BlackFed "RUS"]
[FCGameId "-881900852"]
[WhiteFideId "16202562"]
[BlackFideId "4114310"]
[TimeControl "5400+30"]

1. e4 {[%clk 1:30:56]} c5 {[%clk 1:30:55]} 2. d3 {[%clk 1:31:10]} Nc6 
{[%clk 1:30:16]} 3. Nf3 {[%clk 1:31:02]} g6 {[%clk 1:30:31]} 4. g3 
{[%clk 1:31:17]} Bg7 {[%clk 1:30:57]} 5. Bg2 {[%clk 1:31:37]} e5 
{[%clk 1:31:14]} 6. O-O {[%clk 1:31:27]} Nge7 {[%clk 1:31:39]} 7. Nbd2 
{[%clk 1:31:16]} O-O {[%clk 1:31:49]} 8. c3 {[%clk 1:30:55]} d5 {[%clk 1:31:17]} 
9. Qe2 {[%clk 1:28:04]} h6 {[%clk 1:31:03]} 10. h3 {[%clk 1:25:23]} Be6 
{[%clk 1:31:03]} 11. Nh2 {[%clk 1:25:05]} Qd7 {[%clk 1:30:14]} 12. g4 
{[%clk 1:19:10]} f5 {[%clk 1:28:58]} 13. exf5 {[%clk 1:14:53]} gxf5 
{[%clk 1:29:21]} 14. f3 {[%clk 1:14:55]} Ng6 {[%clk 1:28:52]} 15. Nb3 
{[%clk 1:13:59]} b6 {[%clk 1:29:09]} 16. Be3 {[%clk 1:10:45]} d4 
{[%clk 1:26:19]} 17. cxd4 {[%clk 1:07:56]} exd4 {[%clk 1:26:44]} 18. Bd2 
{[%clk 1:07:19]} Rae8 {[%clk 1:27:03]} 19. Qd1 {[%clk 1:07:30]} Qc7 
{[%clk 1:24:00]} 20. Qc1 {[%clk 1:06:14]} Nh4 {[%clk 1:08:14]} 21. Bxh6 
{[%clk 1:05:09]} Bxb3 {[%clk 1:05:44]} 22. Bxg7 {[%clk 1:04:30]} Re2 
{[%clk 1:05:41]} 23. Rf2 {[%clk 1:03:27]} Rxf2 {[%clk 1:06:01]} 24. Kxf2 
{[%clk 1:02:40]} Qxh2 {[%clk 1:06:29]} 25. Qf1 {[%clk 1:02:11]} Kxg7 
{[%clk 1:06:22]} 26. axb3 {[%clk 1:02:28]} fxg4 {[%clk 1:06:34]} 0-1

[Event "21th IPCA World Individual Chp."]
[Site "followchess.com"]
[Date "2022.05.09"]
[Round "1"]
[White "Gurbanov, Andrei"]
[Black "Vardi, Moshe"]
[Result "1-0"]
[WhiteElo "2302"]
[BlackElo "1631"]
[ECO "A43"]
[WhiteFed "ISR"]
[BlackFed "ISR"]
[FCGameId "-1800209834"]
[WhiteFideId "13503391"]
[BlackFideId "2801710"]
[TimeControl "5400+30"]

1. d4 {[%clk 1:30:56]} c5 {[%clk 1:30:50]} 2. d5 {[%clk 1:31:17]} Nf6 
{[%clk 1:30:20]} 3. Nc3 {[%clk 1:28:46]} b6 {[%clk 1:29:44]} 4. e4 
{[%clk 1:28:18]} d6 {[%clk 1:29:32]} 5. f4 {[%clk 1:27:46]} e5 {[%clk 1:28:19]} 
6. fxe5 {[%clk 1:23:42]} dxe5 {[%clk 1:27:59]} 7. Nf3 {[%clk 1:22:41]} Bd6 
{[%clk 1:26:28]} 8. Bg5 {[%clk 1:21:47]} h6 {[%clk 1:26:07]} 9. Bh4 
{[%clk 1:22:08]} Bg4 {[%clk 1:25:25]} 10. Bb5+ {[%clk 1:21:14]} Nbd7 
{[%clk 1:24:36]} 11. h3 {[%clk 1:21:27]} Bh5 {[%clk 1:23:09]} 12. Bc6 
{[%clk 1:20:43]} Rc8 {[%clk 1:21:35]} 13. Nb5 {[%clk 1:16:49]} Bb8 
{[%clk 1:20:19]} 14. Bb7 {[%clk 1:14:36]} Rc7 {[%clk 1:12:44]} 15. Nxc7+ 
{[%clk 1:14:18]} Qxc7 {[%clk 1:13:06]} 16. Bxf6 {[%clk 1:14:30]} Nxf6 
{[%clk 1:13:18]} 17. Bc6+ {[%clk 1:14:46]} Kf8 {[%clk 1:13:02]} 18. Qd3 
{[%clk 1:14:23]} Qe7 {[%clk 1:10:19]} 19. O-O {[%clk 1:12:05]} Bd6 
{[%clk 1:10:15]} 20. Nh4 {[%clk 1:11:49]} g6 {[%clk 1:06:10]} 21. c4 
{[%clk 1:09:50]} a6 {[%clk 1:05:23]} 22. Rf2 {[%clk 1:09:45]} b5 
{[%clk 1:05:26]} 23. Raf1 {[%clk 1:09:52]} bxc4 {[%clk 1:04:29]} 24. Qxc4 
{[%clk 1:10:03]} Qd8 {[%clk 1:00:45]} 25. Rxf6 {[%clk 1:10:17]} Be7 
{[%clk 1:01:00]} 26. Rxf7+ {[%clk 1:10:40]} Kg8 {[%clk 1:01:26]} 27. d6 
{[%clk 1:10:55]} 1-0

[Event "21th IPCA World Individual Chp."]
[Site "followchess.com"]
[Date "2022.05.09"]
[Round "1"]
[White "Pilimon, Zbigniew"]
[Black "Campos, Eugenio"]
[Result "0-1"]
[WhiteElo "1620"]
[BlackElo "2247"]
[ECO "A70"]
[WhiteFed "POL"]
[BlackFed "ANG"]
[FCGameId "-75478990"]
[WhiteFideId "1110489"]
[BlackFideId "10100156"]
[TimeControl "5400+30"]

1. d4 Nf6 2. c4 {[%clk 1:30:25]} c5 {[%clk 1:30:52]} 3. d5 {[%clk 1:30:09]} e6 
{[%clk 1:31:14]} 4. Nc3 {[%clk 1:30:19]} exd5 {[%clk 1:31:32]} 5. cxd5 
{[%clk 1:30:18]} d6 {[%clk 1:31:52]} 6. e4 {[%clk 1:30:04]} g6 {[%clk 1:32:13]} 
7. Nf3 {[%clk 1:29:25]} Bg7 {[%clk 1:32:28]} 8. Bb5+ {[%clk 1:28:28]} Nbd7 
{[%clk 1:32:23]} 9. Bf4 {[%clk 1:24:43]} Qe7 {[%clk 1:32:12]} 10. O-O 
{[%clk 1:24:21]} O-O {[%clk 1:32:32]} 11. Re1 {[%clk 1:23:43]} a6 
{[%clk 1:32:46]} 12. Bd3 {[%clk 1:19:09]} Nh5 {[%clk 1:31:26]} 13. Bg5 
{[%clk 1:18:04]} Bf6 {[%clk 1:30:23]} 14. Bxf6 {[%clk 1:11:57]} Qxf6 
{[%clk 1:30:29]} 15. g3 {[%clk 1:08:26]} b5 {[%clk 1:30:27]} 16. Bc2 
{[%clk 1:00:57]} Re8 {[%clk 1:30:08]} 17. Nh4 {[%clk 1:00:22]} Ne5 
{[%clk 1:29:22]} 18. f4 {[%clk 0:59:55]} Nc4 {[%clk 1:29:11]} 19. Qc1 
{[%clk 0:53:42]} Bd7 {[%clk 1:28:25]} 20. Nf3 {[%clk 0:50:00]} Bg4 
{[%clk 1:26:47]} 21. Kg2 {[%clk 0:42:01]} b4 {[%clk 1:22:22]} 22. Nd1 
{[%clk 0:41:46]} Re7 {[%clk 1:21:51]} 23. Nd2 {[%clk 0:37:48]} Nb6 
{[%clk 1:15:45]} 24. Ne3 {[%clk 0:36:03]} Bc8 {[%clk 1:15:17]} 25. Ndc4 
{[%clk 0:32:15]} Nxc4 {[%clk 1:14:57]} 26. Nxc4 {[%clk 0:32:29]} Bb7 
{[%clk 1:15:24]} 27. Qd2 {[%clk 0:31:57]} Rd8 {[%clk 1:14:42]} 28. Ba4 
{[%clk 0:28:40]} Qg7 {[%clk 1:14:07]} 29. Na5 {[%clk 0:28:37]} Nf6 
{[%clk 1:14:05]} 30. Bc6 {[%clk 0:23:44]} Bc8 {[%clk 1:14:11]} 31. Qd3 
{[%clk 0:22:04]} Qh6 {[%clk 1:14:12]} 32. h4 {[%clk 0:21:29]} Qh5 
{[%clk 1:14:25]} 33. Ba4 {[%clk 0:21:12]} Bd7 {[%clk 1:10:30]} 34. Bxd7 
{[%clk 0:19:49]} Rdxd7 {[%clk 1:10:39]} 35. Nc4 {[%clk 0:17:55]} Rd8 
{[%clk 1:09:39]} 36. Rac1 {[%clk 0:15:13]} Qg4 {[%clk 1:08:18]} 37. Qf3 
{[%clk 0:14:38]} Qd7 {[%clk 1:08:20]} 38. Re2 {[%clk 0:10:53]} Qb5 
{[%clk 1:07:59]} 39. b3 {[%clk 0:10:13]} Qb8 {[%clk 1:07:32]} 40. Rce1 
{[%clk 0:10:10]} Qb5 {[%clk 1:07:16]} 41. Re3 {[%clk 0:09:43]} a5 
{[%clk 1:06:29]} 42. g4 {[%clk 0:09:49]} a4 {[%clk 1:06:17]} 43. h5 
{[%clk 0:09:10]} axb3 {[%clk 1:06:11]} 44. axb3 {[%clk 0:09:35]} Ra7 
{[%clk 1:06:27]} 45. hxg6 {[%clk 0:08:41]} hxg6 {[%clk 1:04:59]} 46. Qh3 
{[%clk 0:08:41]} Nh7 {[%clk 1:02:39]} 47. Qh6 {[%clk 0:07:40]} Qe8 
{[%clk 1:02:24]} 48. f5 {[%clk 0:04:03]} Qf8 {[%clk 1:01:59]} 49. Qxh7+ 
{[%clk 0:00:48]} Kxh7 {[%clk 1:02:23]} 50. f6 {[%clk 0:01:12]} Ra2+ 
{[%clk 1:01:26]} 51. Kg3 {[%clk 0:00:53]} Qh6 {[%clk 1:01:47]} 52. Kf3 
{[%clk 0:00:31]} Qh3+ {[%clk 1:02:00]} 53. Kf4 {[%clk 0:00:38]} Rf2+ 
{[%clk 1:02:23]} 54. Kg5 {[%clk 0:00:57]} Qh6# {[%clk 1:02:44]} 0-1

[Event "21th IPCA World Individual Chp."]
[Site "followchess.com"]
[Date "2022.05.09"]
[Round "1"]
[White "Lipilin, Ilia"]
[Black "Oliel, Yehonatan"]
[Result "1-0"]
[WhiteElo "2198"]
[BlackElo "1535"]
[ECO "D70"]
[WhiteFed "RUS"]
[BlackFed "ISR"]
[FCGameId "-239813899"]
[WhiteFideId "54113245"]
[BlackFideId "2834928"]
[TimeControl "5400+30"]

1. d4 {[%clk 1:30:57]} Nf6 {[%clk 1:30:25]} 2. c4 {[%clk 1:31:16]} g6 3. f3 
{[%clk 1:31:32]} d5 {[%clk 1:28:06]} 4. cxd5 {[%clk 1:29:44]} Nxd5 
{[%clk 1:27:46]} 5. e4 {[%clk 1:30:07]} Nb6 {[%clk 1:26:30]} 6. Nc3 
{[%clk 1:30:27]} Bg7 {[%clk 1:25:51]} 7. Be3 {[%clk 1:30:52]} Nc6 
{[%clk 1:23:27]} 8. Bb5 {[%clk 1:31:04]} Bd7 {[%clk 1:22:58]} 9. Nge2 
{[%clk 1:29:12]} a6 {[%clk 1:21:04]} 10. Bxc6 {[%clk 1:24:32]} Bxc6 
{[%clk 1:20:23]} 11. d5 {[%clk 1:24:55]} Bd7 {[%clk 1:14:19]} 12. Bd4 
{[%clk 1:20:24]} O-O {[%clk 1:08:56]} 13. a4 {[%clk 1:17:10]} e6 
{[%clk 1:04:54]} 14. Bxg7 {[%clk 1:12:36]} Kxg7 {[%clk 1:04:48]} 15. a5 
{[%clk 1:12:50]} Nc8 {[%clk 1:03:34]} 16. Qd4+ {[%clk 1:09:05]} Kg8 17. O-O 
{[%clk 1:04:13]} Nd6 18. Rfd1 {[%clk 1:00:35]} Qg5 {[%clk 0:45:56]} 19. e5 Nf5 
{[%clk 0:42:51]} 20. Qf2 {[%clk 0:48:05]} Ne3 21. Rd3 {[%clk 0:35:14]} Nc4 22. 
Qd4 exd5 23. Nxd5 Bb5 24. Nf6+ Kh8 25. f4 Qf5 26. g4 Qe6 27. Rh3 h5 28. Rxh5+ 
gxh5 {[%clk 0:23:26]} 29. Qe4 {[%clk 0:26:26]} Qxf6 {[%clk 0:22:22]} 30. exf6 
{[%clk 0:26:49]} Rg8 {[%clk 0:21:48]} 31. g5 {[%clk 0:27:04]} Nd6 
{[%clk 0:21:12]} 32. Qf3 {[%clk 0:27:20]} Rge8 {[%clk 0:19:59]} 33. Qxh5+ 
{[%clk 0:27:26]} Kg8 {[%clk 0:20:15]} 34. g6 {[%clk 0:27:05]} 1-0

[Event "21th IPCA World Individual Chp."]
[Site "followchess.com"]
[Date "2022.05.09"]
[Round "1"]
[White "Shchukina, Ekaterina"]
[Black "Valenta, Vit Vaclav"]
[Result "0-1"]
[WhiteElo "1496"]
[BlackElo "2014"]
[ECO "B41"]
[WhiteFed "RUS"]
[BlackFed "CZE"]
[FCGameId "697855991"]
[WhiteFideId "34103055"]
[BlackFideId "307440"]
[TimeControl "5400+30"]

1. e4 {[%clk 1:30:53]} c5 {[%clk 1:30:50]} 2. Nf3 {[%clk 1:31:12]} e6 
{[%clk 1:31:15]} 3. d4 {[%clk 1:31:05]} cxd4 {[%clk 1:31:34]} 4. Nxd4 
{[%clk 1:31:25]} Nf6 {[%clk 1:31:23]} 5. Nc3 {[%clk 1:30:08]} Bb4 
{[%clk 1:31:44]} 6. Bd3 {[%clk 1:29:31]} Nc6 {[%clk 1:31:17]} 7. Be3 
{[%clk 1:27:26]} e5 {[%clk 1:26:11]} 8. Nb3 {[%clk 1:25:55]} d5 {[%clk 1:25:23]} 
9. exd5 {[%clk 1:22:23]} Nxd5 {[%clk 1:25:41]} 10. Bd2 {[%clk 1:22:31]} Nxc3 
{[%clk 1:25:29]} 11. bxc3 {[%clk 1:21:36]} Be7 {[%clk 1:25:47]} 12. O-O 
{[%clk 1:21:52]} O-O {[%clk 1:25:48]} 13. Qe2 {[%clk 1:16:52]} f5 
{[%clk 1:20:15]} 14. Bc4+ {[%clk 1:13:54]} Kh8 {[%clk 1:20:39]} 15. Rad1 
{[%clk 1:12:50]} Qc7 {[%clk 1:20:46]} 16. Rfe1 {[%clk 1:10:51]} Bf6 
{[%clk 1:11:31]} 17. Bc1 {[%clk 1:00:15]} Qe7 {[%clk 0:57:30]} 18. Bb2 
{[%clk 0:50:37]} Be6 {[%clk 0:45:25]} 19. Bxe6 {[%clk 0:32:48]} Qxe6 
{[%clk 0:45:52]} 20. c4 {[%clk 0:31:46]} Qf7 {[%clk 0:41:56]} 21. Rd5 
{[%clk 0:23:36]} Rad8 {[%clk 0:31:11]} 22. Red1 {[%clk 0:23:43]} Qe7 
{[%clk 0:23:49]} 23. a3 {[%clk 0:17:26]} e4 {[%clk 0:19:23]} 24. Bxf6 
{[%clk 0:15:49]} Qxf6 {[%clk 0:19:51]} 25. Nd4 {[%clk 0:13:48]} Rxd5 
{[%clk 0:16:37]} 0-1

[Event "21th IPCA World Individual Chp."]
[Site "followchess.com"]
[Date "2022.05.09"]
[Round "1"]
[White "Cosic, Radoslav"]
[Black "Klein, Djimmy"]
[Result "1-0"]
[WhiteElo "2003"]
[BlackElo "1392"]
[ECO "A05"]
[WhiteFed "CRO"]
[BlackFed "FRA"]
[FCGameId "1665813148"]
[WhiteFideId "14504367"]
[BlackFideId "20669445"]
[TimeControl "5400+30"]

1. Nf3 {[%clk 1:30:37]} Nf6 {[%clk 1:30:42]} 2. b3 {[%clk 1:30:25]} d6 
{[%clk 1:30:29]} 3. d4 {[%clk 1:30:41]} g6 {[%clk 1:30:27]} 4. g3 
{[%clk 1:30:52]} Bg7 {[%clk 1:30:29]} 5. Bb2 {[%clk 1:31:20]} O-O 
{[%clk 1:29:47]} 6. Bg2 {[%clk 1:31:41]} c6 {[%clk 1:29:30]} 7. O-O 
{[%clk 1:31:59]} Nbd7 {[%clk 1:27:16]} 8. Nbd2 {[%clk 1:31:43]} c5 
{[%clk 1:25:25]} 9. e3 {[%clk 1:29:48]} Rb8 {[%clk 1:24:54]} 10. a4 
{[%clk 1:28:10]} a5 {[%clk 1:23:07]} 11. Re1 {[%clk 1:28:05]} b6 
{[%clk 1:22:05]} 12. c4 {[%clk 1:28:00]} Bb7 {[%clk 1:20:47]} 13. Qc2 
{[%clk 1:28:28]} Rc8 {[%clk 1:18:05]} 14. Rad1 {[%clk 1:28:39]} Nb8 
{[%clk 1:18:09]} 15. d5 {[%clk 1:27:46]} Na6 {[%clk 1:18:18]} 16. e4 
{[%clk 1:27:45]} Nb4 {[%clk 1:18:29]} 17. Qb1 {[%clk 1:27:51]} e5 
{[%clk 1:16:35]} 18. dxe6 {[%clk 1:28:10]} fxe6 {[%clk 1:16:49]} 19. Ng5 
{[%clk 1:27:29]} Qd7 {[%clk 1:15:03]} 20. f4 {[%clk 1:26:46]} Rce8 
{[%clk 1:14:11]} 21. e5 {[%clk 1:15:13]} Bxg2 {[%clk 1:12:38]} 22. exf6 
{[%clk 1:15:31]} Bxf6 {[%clk 1:12:43]} 23. Bxf6 {[%clk 1:15:45]} Rxf6 
{[%clk 1:12:29]} 24. Kxg2 {[%clk 1:16:04]} h6 {[%clk 1:08:12]} 25. Nde4 
{[%clk 1:16:07]} Qb7 {[%clk 1:05:52]} 26. Kg1 {[%clk 1:14:11]} 1-0

[Event "21th IPCA World Individual Chp."]
[Site "followchess.com"]
[Date "2022.05.09"]
[Round "1"]
[White "Volodarsky, Michael"]
[Black "Srimskov, Elishar"]
[Result "0-1"]
[WhiteElo "1400"]
[BlackElo "1992"]
[ECO "E68"]
[WhiteFed "ISR"]
[BlackFed "ISR"]
[FCGameId "-1599417282"]
[WhiteFideId "2814366"]
[BlackFideId "2807254"]
[TimeControl "5400+30"]

1. d4 {[%clk 1:30:44]} Nf6 {[%clk 1:30:34]} 2. c4 {[%clk 1:30:53]} g6 
{[%clk 1:30:09]} 3. Nc3 {[%clk 1:31:11]} Bg7 {[%clk 1:30:30]} 4. e4 
{[%clk 1:31:29]} d6 {[%clk 1:30:42]} 5. g3 {[%clk 1:29:55]} O-O {[%clk 1:30:08]} 
6. Bg2 {[%clk 1:30:05]} Nbd7 {[%clk 1:29:35]} 7. Nf3 {[%clk 1:29:23]} e5 
{[%clk 1:28:20]} 8. O-O {[%clk 1:29:36]} exd4 {[%clk 1:24:38]} 9. Nxd4 
{[%clk 1:30:01]} Nc5 {[%clk 1:21:43]} 10. Re1 {[%clk 1:25:52]} Re8 
{[%clk 1:19:57]} 11. f3 {[%clk 1:26:15]} a5 {[%clk 1:17:36]} 12. Bf4 
{[%clk 1:21:56]} Nfd7 {[%clk 1:16:11]} 13. Nb3 {[%clk 1:17:36]} Ne6 
{[%clk 1:14:33]} 14. Be3 {[%clk 1:15:05]} Ne5 {[%clk 1:13:19]} 15. Qe2 
{[%clk 1:13:08]} a4 {[%clk 1:12:06]} 16. Nc1 {[%clk 1:08:05]} a3 
{[%clk 1:11:59]} 17. Rb1 {[%clk 1:00:50]} axb2 {[%clk 1:11:49]} 18. Qxb2 
{[%clk 0:55:33]} Nxc4 {[%clk 1:11:48]} 19. Qb3 {[%clk 0:48:55]} Nxe3 
{[%clk 1:11:35]} 20. Bh3 {[%clk 0:45:23]} Nd4 {[%clk 1:10:47]} 21. Qb2 
{[%clk 0:43:01]} Nxf3+ {[%clk 1:10:37]} 22. Kf2 {[%clk 0:43:01]} Nxe1 
{[%clk 1:08:08]} 23. Kxe1 {[%clk 0:37:56]} Bxh3 {[%clk 1:08:12]} 24. Qd2 
{[%clk 0:35:53]} Nc4 {[%clk 1:06:40]} 25. Qd3 {[%clk 0:33:50]} Bxc3+ 
{[%clk 1:06:25]} 26. Qxc3 {[%clk 0:33:57]} Rxe4+ {[%clk 1:06:43]} 27. Kd1 
{[%clk 0:33:53]} Ne3+ {[%clk 1:05:46]} 28. Kd2 {[%clk 0:32:27]} Qg5 0-1

[Event "21th IPCA World Individual Chp."]
[Site "followchess.com"]
[Date "2022.05.09"]
[Round "1"]
[White "Freiberg, Doron"]
[Black "Gerasimova, Svetlana"]
[Result "0-1"]
[WhiteElo "1244"]
[BlackElo "1906"]
[ECO "E60"]
[WhiteFed "ISR"]
[BlackFed "RUS"]
[FCGameId "-766974096"]
[WhiteFideId "2841312"]
[BlackFideId "4145968"]
[TimeControl "5400+30"]

1. d4 {[%clk 1:30:54]} Nf6 {[%clk 1:30:54]} 2. Nf3 {[%clk 1:31:15]} g6 
{[%clk 1:31:18]} 3. c4 {[%clk 1:31:13]} Bg7 {[%clk 1:31:41]} 4. g3 
{[%clk 1:31:35]} O-O {[%clk 1:31:47]} 5. Bg2 {[%clk 1:31:57]} d6 
{[%clk 1:31:02]} 6. O-O {[%clk 1:31:25]} Nbd7 {[%clk 1:30:33]} 7. Nc3 
{[%clk 1:28:48]} c6 {[%clk 1:30:15]} 8. Re1 {[%clk 1:27:02]} e5 {[%clk 1:27:56]} 
9. dxe5 {[%clk 1:23:32]} dxe5 {[%clk 1:28:20]} 10. e4 {[%clk 1:19:09]} a5 
{[%clk 1:22:46]} 11. b3 {[%clk 1:13:33]} Qe7 {[%clk 1:13:11]} 12. Bb2 
{[%clk 1:06:30]} Rd8 {[%clk 1:10:15]} 13. Qc2 {[%clk 1:03:06]} Nf8 
{[%clk 1:08:27]} 14. Na4 {[%clk 1:00:57]} N6d7 {[%clk 1:08:18]} 15. Nc3 
{[%clk 0:57:01]} Nc5 {[%clk 1:04:21]} 16. Rad1 {[%clk 0:49:51]} Bg4 
{[%clk 1:03:01]} 17. Ba3 {[%clk 0:47:00]} Bxf3 {[%clk 0:58:35]} 18. Bxf3 
{[%clk 0:47:07]} b6 {[%clk 0:57:58]} 19. Na4 {[%clk 0:45:00]} Qa7 
{[%clk 0:58:01]} 20. Nxc5 bxc5 {[%clk 0:58:23]} 21. Re3 {[%clk 0:37:54]} Ne6 
{[%clk 0:58:22]} 22. Bb2 {[%clk 0:37:38]} Nd4 {[%clk 0:57:03]} 23. Bxd4 
{[%clk 0:37:50]} cxd4 {[%clk 0:56:57]} 24. Red3 {[%clk 0:37:12]} Qc5 
{[%clk 0:55:39]} 25. Qd2 {[%clk 0:34:52]} a4 {[%clk 0:50:58]} 26. Rb1 
{[%clk 0:31:53]} Rdb8 {[%clk 0:51:00]} 27. Bd1 {[%clk 0:30:30]} axb3 
{[%clk 0:49:53]} 28. Bxb3 {[%clk 0:29:10]} Qa3 {[%clk 0:48:06]} 29. Rb2 
{[%clk 0:24:23]} Ra5 {[%clk 0:43:28]} 30. Rf3 {[%clk 0:22:59]} Rc5 
{[%clk 0:41:37]} 31. Rc2 {[%clk 0:20:59]} Rb4 {[%clk 0:36:52]} 32. Kg2 
{[%clk 0:18:12]} Rb7 {[%clk 0:31:10]} 33. Qg5 {[%clk 0:17:44]} Rd7 
{[%clk 0:31:29]} 34. Qg4 {[%clk 0:15:56]} Qa7 {[%clk 0:30:44]} 35. Rd3 
{[%clk 0:14:37]} Bf8 {[%clk 0:28:48]} 36. Rcd2 {[%clk 0:14:13]} Kg7 
{[%clk 0:27:42]} 37. h4 {[%clk 0:13:29]} h5 {[%clk 0:27:58]} 38. Qd1 
{[%clk 0:12:37]} Ra5 {[%clk 0:25:14]} 39. Rf3 {[%clk 0:11:40]} Bc5 
{[%clk 0:24:49]} 40. Rdd3 {[%clk 0:11:09]} Rd6 {[%clk 0:24:39]} 41. Qe1 
{[%clk 0:09:40]} Ra3 {[%clk 0:24:26]} 42. Rd1 {[%clk 0:09:31]} Qe7 
{[%clk 0:24:30]} 43. Qd2 {[%clk 0:08:29]} Rf6 {[%clk 0:23:50]} 44. Qd3 
{[%clk 0:07:53]} Rxf3 {[%clk 0:23:46]} 45. Qxf3 {[%clk 0:08:10]} Qf6 
{[%clk 0:23:53]} 46. Rd3 {[%clk 0:08:13]} Qxf3+ {[%clk 0:23:57]} 47. Kxf3 
{[%clk 0:08:22]} f5 {[%clk 0:24:02]} 48. exf5 {[%clk 0:07:56]} gxf5 
{[%clk 0:24:25]} 49. Kg2 {[%clk 0:08:05]} e4 {[%clk 0:24:43]} 50. Rd1 
{[%clk 0:08:17]} Kf6 {[%clk 0:24:54]} 51. f4 {[%clk 0:08:11]} d3 
{[%clk 0:24:37]} 52. Rd2 {[%clk 0:05:25]} Bb4 {[%clk 0:24:57]} 53. Rd1 
{[%clk 0:05:44]} Ra8 {[%clk 0:24:58]} 54. Kf2 {[%clk 0:05:54]} Bc5+ 
{[%clk 0:25:11]} 55. Ke1 {[%clk 0:05:14]} Rd8 {[%clk 0:25:28]} 56. Kf1 
{[%clk 0:04:56]} e3 {[%clk 0:25:02]} 57. Rb1 {[%clk 0:04:20]} e2+ 
{[%clk 0:24:47]} 58. Kg2 {[%clk 0:04:37]} d2 {[%clk 0:25:26]} 59. Rb2 
{[%clk 0:04:16]} e1=Q 0-1